bitfinex/quotes_BTCUSD_20250831
["timestamp","ask_amount","ask_price","bid_price","bid_amount"]
[1756680368349,6.69250475,109070.0,109060.0,0.04630056]
[1756680369707,7.02008449,109070.0,109060.0,0.04630056]
[1756680369913,7.10838081,109070.0,109060.0,0.04630056]
[1756680372070,6.78080702,109070.0,109060.0,0.04630056]
[1756680372282,6.6925107,109070.0,109060.0,0.04630056]
[1756680372993,6.6925107,109070.0,109060.0,0.0052]
[1756680373559,6.03208122,109070.0,109060.0,0.01042]
[1756680373790,6.23720001,109070.0,109060.0,0.01042]
[1756680374187,5.58409053,109070.0,109060.0,0.01042]
[1756680374392,6.23925001,109070.0,109060.0,0.00736]
[1756680374808,6.24891292,109070.0,109060.0,0.0052]
[1756680376177,6.24569568,109070.0,109060.0,0.0052]
[1756680376587,6.24891568,109070.0,109060.0,0.0052]
[1756680376792,5.5937562,109070.0,109060.0,0.0052]
[1756680377008,6.24891568,109070.0,109060.0,0.0052]
[1756680377453,6.24569568,109070.0,109060.0,0.0052]
[1756680377842,6.24891568,109070.0,109060.0,0.0052]
[1756680379278,6.24569568,109070.0,109060.0,0.0052]
[1756680379485,6.24891568,109070.0,109060.0,0.0052]
[1756680379690,6.24892331,109070.0,109060.0,0.0052]
[1756680380104,6.82467937,109070.0,109060.0,0.0052]
[1756680380523,7.74650924,109070.0,109060.0,0.0052]
[1756680380726,7.4189295,109070.0,109060.0,0.0052]
[1756680380931,7.74650924,109070.0,109060.0,0.0052]
[1756680381146,1.49370425,109060.0,109050.0,0.00024]
[1756680381387,6.81855865,109060.0,109050.0,0.00024]
[1756680381597,6.49309891,109060.0,109050.0,0.00024]
[1756680381817,6.52387764,109060.0,109050.0,0.00024]
[1756680382406,6.4991445,109060.0,109050.0,0.00224]
[1756680382640,6.4991445,109060.0,109050.0,0.00624]
[1756680382849,6.4990645,109060.0,109050.0,0.00624]
[1756680383251,5.35656528,109060.0,109050.0,0.00624]
[1756680383459,6.4990645,109060.0,109050.0,0.00624]
[1756680385798,7.91478373,109060.0,109050.0,0.00624]
[1756680386038,0.5234021,109050.0,109040.0,1e-08]
[1756680386297,7.86359436,109050.0,109040.0,1e-08]
[1756680386513,8.08730405,109050.0,109040.0,1e-08]
[1756680386732,8.13961697,109050.0,109040.0,1e-08]
[1756680386956,8.10657182,109050.0,109040.0,1e-08]
[1756680387411,8.15382008,109050.0,109040.0,1e-08]
[1756680387599,8.15390008,109050.0,109040.0,1e-08]
[1756680387821,8.15389473,109050.0,109040.0,1e-08]
[1756680388049,7.17212466,109050.0,109040.0,1e-08]
[1756680388178,7.01136466,109050.0,109040.0,1e-08]
[1756680388403,6.9619016,109050.0,109040.0,1e-08]
[1756680388675,7.1225816,109050.0,109040.0,1e-08]
[1756680388913,7.1245816,109050.0,109040.0,1e-08]
[1756680389147,6.9639016,109050.0,109040.0,1e-08]
[1756680389357,6.98853858,109050.0,109040.0,1e-08]
[1756680389557,7.15117858,109050.0,109040.0,1e-08]
[1756680391314,6.99053858,109050.0,109040.0,1e-08]
[1756680391523,7.15117858,109050.0,109040.0,1e-08]
[1756680392786,7.15125858,109050.0,109040.0,1e-08]
[1756680394121,7.15124391,109050.0,109040.0,1e-08]
[1756680397690,7.14477468,109050.0,109040.0,1e-08]
[1756680397941,7.15114804,109050.0,109040.0,1e-08]
[1756680399314,7.12651106,109050.0,109040.0,1e-08]
[1756680399726,0.85135536,109020.0,109010.0,0.0002]
[1756680399950,6.87162431,109020.0,109010.0,0.0002]
[1756680400208,6.89662596,109020.0,109010.0,0.0002]
[1756680400848,6.90687796,109020.0,109010.0,0.0002]
[1756680401086,6.90735066,109020.0,109010.0,0.0002]
[1756680401309,6.2352704,109020.0,109010.0,0.0053]
[1756680401504,6.3954704,109020.0,109010.0,0.0053]
[1756680402155,6.3954704,109020.0,109010.0,0.0083]
[1756680402379,6.3954704,109020.0,109010.0,0.0103]
[1756680402598,6.3954704,109020.0,109010.0,0.0073]
[1756680402816,6.3954704,109020.0,109010.0,0.0053]
[1756680403714,6.48096879,109020.0,109010.0,0.0063]
[1756680404817,5.73958482,109020.0,109010.0,0.0063]
[1756680405301,6.8389904,109020.0,109010.0,0.0063]
[1756680407120,6.84539662,109020.0,109010.0,0.0063]
[1756680407533,6.82572497,109020.0,109010.0,0.0063]
[1756680407735,6.84541012,109020.0,109010.0,0.0063]
[1756680407930,6.93370644,109020.0,109010.0,0.0063]
[1756680408528,6.9433688,109020.0,109010.0,0.0063]
[1756680408734,6.95834386,109020.0,109010.0,0.0063]
[1756680409568,6.95835203,109020.0,109010.0,0.0063]
[1756680409995,6.96047203,109020.0,109010.0,0.0063]
[1756680411683,6.95835203,109020.0,109010.0,0.0063]
[1756680411866,6.96041203,109020.0,109010.0,0.0063]
[1756680412271,6.9933012,109020.0,109010.0,0.0063]
[1756680412620,6.8331812,109020.0,109010.0,0.0063]
[1756680412845,6.90278488,109020.0,109010.0,0.0063]
[1756680413052,6.86989571,109020.0,109010.0,0.0063]
[1756680414377,6.90278488,109020.0,109010.0,0.0063]
[1756680414618,6.2469793,109020.0,109010.0,0.0063]
[1756680414820,6.90278488,109020.0,109010.0,0.0063]
[1756680414996,6.86989571,109020.0,109010.0,0.0063]
[1756680415204,6.95819203,109020.0,109010.0,0.0063]
[1756680415591,6.90278488,109020.0,109010.0,0.0063]
[1756680415807,6.90280739,109020.0,109010.0,0.0063]
[1756680416045,6.74284739,109020.0,109010.0,0.0063]
[1756680416295,6.90276739,109020.0,109010.0,0.0063]
[1756680417752,6.74284739,109020.0,109010.0,0.0063]
[1756680417950,6.90280739,109020.0,109010.0,0.0063]
[1756680418289,6.74284739,109020.0,109010.0,0.0063]
[1756680418490,6.90276739,109020.0,109010.0,0.0063]
[1756680418694,6.86987822,109020.0,109010.0,0.0063]
[1756680419352,6.86133073,109020.0,109010.0,0.0063]
[1756680419552,6.21416391,109020.0,109010.0,0.0063]
[1756680419760,6.86996949,109020.0,109010.0,0.0063]
[1756680419971,6.86996955,109020.0,109010.0,0.0063]
[1756680420384,6.86996992,109020.0,109010.0,0.0063]
[1756680420577,6.71004992,109020.0,109010.0,0.0063]
[1756680420929,6.86992992,109020.0,109010.0,0.0063]
[1756680421137,6.71004992,109020.0,109010.0,0.0063]
[1756680422307,6.68544348,109020.0,109010.0,0.0063]
[1756680422498,1.35754069,109020.0,109010.0,0.10157337]
[1756680422998,0.91394069,109020.0,109010.0,0.10157337]
[1756680424064,0.91394069,109020.0,109010.0,0.10457337]
[1756680424315,0.91394069,109020.0,109010.0,0.10357337]
[1756680424523,0.90750562,109020.0,109010.0,0.10357337]
[1756680424728,0.90750562,109020.0,109010.0,0.10457337]
[1756680425139,0.90750562,109020.0,109010.0,0.10357337]
[1756680425346,1.23540841,109020.0,109010.0,0.10357337]
[1756680425580,1.23540841,109020.0,109010.0,0.10557337]
[1756680427501,1.23540841,109020.0,109010.0,0.10328001]
[1756680428735,1.29976111,109020.0,109010.0,0.10328001]
[1756680428935,1.23540841,109020.0,109010.0,0.10328001]
[1756680429137,1.2268284,109020.0,109010.0,0.10328001]
[1756680429427,1.23745831,109020.0,109010.0,0.10328001]
[1756680429865,1.23539831,109020.0,109010.0,0.10328001]
[1756680430078,1.23539774,109020.0,109010.0,0.10328001]
[1756680430387,1.23539774,109020.0,109010.0,0.10557337]
[1756680431267,1.23539774,109020.0,109010.0,0.10328001]
[1756680432458,1.21571259,109020.0,109010.0,0.10328001]
[1756680432980,1.21571032,109020.0,109010.0,0.10328001]
[1756680436135,1.21571032,109020.0,109010.0,0.26244001]
[1756680436136,1.21777032,109020.0,109010.0,0.26244001]
[1756680436363,1.2091945,109020.0,109010.0,0.26244001]
[1756680438706,0.55338892,109020.0,109010.0,0.26244001]
[1756680438931,1.2071345,109020.0,109010.0,0.26244001]
[1756680440281,1.20714373,109020.0,109010.0,0.26244001]
[1756680441167,1.20914373,109020.0,109010.0,0.26244001]
[1756680442753,1.20914373,109020.0,109010.0,0.25938001]
[1756680443196,1.20914373,109020.0,109010.0,0.26254001]
[1756680444571,1.20914373,109020.0,109010.0,0.25914001]
[1756680448122,0.55333815,109020.0,109010.0,0.25914001]
[1756680448330,1.20914373,109020.0,109010.0,0.25914001]
[1756680449165,1.20914373,109020.0,109010.0,0.10022001]
[1756680449379,6.30061005,109020.0,109010.0,0.0052]
[1756680449591,6.30920393,109020.0,109010.0,0.0052]
[1756680449817,6.3354484,109020.0,109010.0,0.0052]
[1756680450461,6.33544613,109020.0,109010.0,0.0052]
[1756680451157,6.31184059,109020.0,109010.0,0.0032]
[1756680451362,6.33546889,109020.0,109010.0,0.0042]
[1756680452190,6.49674889,109020.0,109010.0,0.0042]
[1756680452411,6.49674889,109020.0,109010.0,0.0012]
[1756680452624,6.94034889,109020.0,109010.0,0.0012]
[1756680452846,6.96317695,109020.0,109010.0,0.0032]
[1756680453471,6.63527416,109020.0,109010.0,0.0032]
[1756680454279,6.96317695,109020.0,109010.0,0.0032]
[1756680454722,6.62688205,109020.0,109010.0,0.0032]
[1756680454959,6.63546576,109020.0,109010.0,0.0032]
[1756680456063,6.96336855,109020.0,109010.0,0.0032]
[1756680456246,6.99625772,109020.0,109010.0,0.0032]
[1756680456405,6.96336855,109020.0,109010.0,0.0032]
[1756680456575,6.99625772,109020.0,109010.0,1e-08]
[1756680457219,6.96336855,109020.0,109010.0,1e-08]
[1756680458932,6.96336855,109020.0,108960.0,0.0142769]
[1756680458933,0.18353499,108980.0,108960.0,0.0142769]
[1756680459161,6.34599233,108970.0,108960.0,0.0111169]
[1756680459359,6.20169655,108970.0,108960.0,0.0111169]
[1756680459523,6.41114635,108970.0,108960.0,0.0111169]
[1756680460377,6.39188696,108970.0,108960.0,0.0111169]
[1756680461147,6.22976696,108970.0,108960.0,0.0111169]
[1756680461364,6.39188696,108970.0,108960.0,0.0111169]
[1756680461993,6.39180223,108970.0,108960.0,0.0111169]
[1756680462206,6.48009855,108970.0,108960.0,0.0111169]
[1756680462689,6.48004843,108970.0,108960.0,0.0111169]
[1756680462911,6.31796843,108970.0,108960.0,0.0111169]
[1756680463126,6.39163211,108970.0,108960.0,0.0111169]
[1756680463763,6.22967211,108970.0,108960.0,0.0111169]
[1756680463964,6.40068554,108970.0,108960.0,0.0111169]
[1756680464174,5.58291996,108970.0,108960.0,0.0111169]
[1756680464383,6.40072554,108970.0,108960.0,0.0111169]
[1756680464593,6.23872554,108970.0,108960.0,0.0111169]
[1756680464801,6.40080554,108970.0,108960.0,0.0111169]
[1756680465569,6.23872554,108970.0,108960.0,0.0111169]
[1756680465926,6.40076554,108970.0,108960.0,0.0111169]
[1756680466355,6.39555554,108970.0,108960.0,0.0163269]
[1756680466977,6.39755554,108970.0,108960.0,0.0163269]
[1756680467399,6.23555554,108970.0,108960.0,0.0163269]
[1756680467617,6.39555554,108970.0,108960.0,0.0163269]
[1756680467833,5.57774996,108970.0,108960.0,0.0163269]
[1756680468047,5.90565275,108970.0,108960.0,0.0163269]
[1756680468259,6.06753275,108970.0,108960.0,0.0163269]
[1756680468475,6.06765275,108970.0,108960.0,0.0163269]
[1756680468908,5.73974996,108970.0,108960.0,0.0163269]
[1756680469114,6.06765275,108970.0,108960.0,0.0163269]
[1756680469862,6.39555554,108970.0,108960.0,0.0163269]
[1756680470472,6.23355554,108970.0,108960.0,0.0163269]
[1756680471444,0.90565275,108970.0,108960.0,0.0163269]
[1756680472551,0.90565275,108970.0,108960.0,0.01862131]
[1756680472776,0.90563297,108970.0,108960.0,0.01862131]
[1756680474063,0.90563297,108970.0,108960.0,0.02362131]
[1756680476129,0.90563297,108970.0,108960.0,0.11660132]
[1756680477349,0.9141777,108970.0,108960.0,0.11660132]
[1756680478157,0.58627491,108970.0,108960.0,0.11660132]
[1756680478375,0.9141777,108970.0,108960.0,0.11660132]
[1756680478916,0.9141777,108970.0,108960.0,0.30015491]
[1756680479112,0.89657954,108970.0,108960.0,0.2978605]
[1756680479339,0.90513231,108970.0,108960.0,0.2978605]
[1756680479774,0.90513231,108970.0,108960.0,0.11430691]
[1756680479940,0.90513231,108970.0,108960.0,0.11401256]
[1756680480367,0.90711231,108970.0,108960.0,0.11401256]
[1756680480593,0.90513231,108970.0,108960.0,0.11401256]
[1756680480797,0.91425961,108970.0,108960.0,0.11401256]
[1756680481414,0.58635682,108970.0,108960.0,0.11401256]
[1756680481594,0.91425961,108970.0,108960.0,0.11401256]
[1756680482245,0.89719002,108970.0,108960.0,0.11085256]
[1756680482451,0.91940282,108970.0,108960.0,0.10880256]
[1756680482863,0.58841003,108970.0,108960.0,0.10880256]
[1756680483078,0.91631333,108970.0,108960.0,0.10880256]
[1756680483269,0.91631333,108970.0,108960.0,0.11080256]
[1756680483425,0.91631333,108970.0,108960.0,0.11402256]
[1756680484047,0.91433333,108970.0,108960.0,0.11402256]
[1756680484499,0.91433896,108970.0,108960.0,0.11402256]
[1756680485475,0.93409446,108970.0,108960.0,0.11402256]
[1756680486074,0.93409446,108970.0,108960.0,0.11631697]
[1756680486278,0.94052725,108970.0,108960.0,0.11402256]
[1756680486714,0.93409446,108970.0,108960.0,0.11402256]
[1756680487121,0.93409446,108970.0,108960.0,0.27538256]
[1756680487332,0.94053001,108970.0,108960.0,0.27538256]
[1756680487536,0.94053001,108970.0,108960.0,0.11402256]
[1756680487774,0.94053001,108970.0,108960.0,0.27534256]
[1756680487957,0.61262722,108970.0,108960.0,0.27534256]
[1756680488174,0.60619167,108970.0,108960.0,0.27534256]
[1756680488385,0.94053266,108970.0,108960.0,0.27534256]
[1756680488589,0.94053266,108970.0,108960.0,0.11402256]
[1756680488794,0.94053266,108970.0,108960.0,0.11631697]
[1756680489063,0.94053266,108970.0,108960.0,0.27526256]
[1756680489306,0.94251266,108970.0,108960.0,0.27526256]
[1756680489525,0.94251266,108970.0,108960.0,0.27200256]
[1756680489740,0.94252313,108970.0,108960.0,0.27200256]
[1756680490613,0.61462034,108970.0,108960.0,0.27522256]
[1756680490821,0.61264034,108970.0,108960.0,0.27522256]
[1756680491027,0.94054313,108970.0,108960.0,0.27522256]
[1756680492067,0.93141583,108970.0,108960.0,0.45877615]
[1756680492296,0.93141583,108970.0,108960.0,0.27522256]
[1756680492518,0.59141583,108970.0,108960.0,0.27522256]
[1756680492657,0.58497869,108970.0,108960.0,0.27522256]
[1756680493076,0.56522319,108970.0,108960.0,0.27522256]
[1756680493274,0.58504368,108970.0,108960.0,0.45877615]
[1756680493502,0.56526356,108970.0,108960.0,0.45877615]
[1756680493705,0.23736143,108970.0,108960.0,0.45877615]
[1756680493910,0.05382468,108970.0,108960.0,0.45877615]
[1756680494367,0.56526422,108970.0,108960.0,0.27172256]
[1756680494562,0.56526422,108970.0,108960.0,0.45849615]
[1756680494762,0.57427493,108970.0,108960.0,0.45849615]
[1756680495256,0.56526422,108970.0,108960.0,0.45849615]
[1756680496937,0.56526648,108970.0,108960.0,0.45849615]
[1756680497155,0.23736369,108970.0,108960.0,0.45849615]
[1756680497332,0.38172973,108970.0,108960.0,0.45849615]
[1756680497463,0.05382694,108970.0,108960.0,0.45849615]
[1756680498303,0.02622894,108970.0,108960.0,0.45849615]
[1756680498931,0.53766848,108970.0,108960.0,0.29757615]
[1756680499163,0.53766848,108970.0,108960.0,0.27666256]
[1756680499385,0.53766848,108970.0,108960.0,0.46021615]
[1756680499386,0.20976569,108970.0,108960.0,0.46021615]
[1756680499599,0.53766848,108970.0,108960.0,0.46021615]
[1756680500006,0.53766848,108970.0,108960.0,0.27666256]
[1756680500219,0.53966013,108970.0,108960.0,0.27666256]
[1756680500859,0.53966013,108970.0,108960.0,0.11402256]
[1756680501076,0.53966013,108970.0,108960.0,0.46017615]
[1756680501279,0.54266013,108970.0,108960.0,0.10880256]
[1756680501500,0.54266013,108970.0,108960.0,0.27128256]
[1756680501928,0.57025113,108970.0,108960.0,0.27128256]
[1756680502136,0.24234834,108970.0,108960.0,0.27128256]
[1756680502535,0.56166174,108970.0,108960.0,0.27128256]
[1756680503992,0.56166476,108970.0,108960.0,0.27128256]
[1756680506412,0.23076197,108970.0,108960.0,0.27325256]
[1756680506631,0.04524522,108970.0,108960.0,0.45992615]
[1756680506833,0.22878197,108970.0,108960.0,0.45992615]
[1756680507226,0.22878197,108970.0,108960.0,0.45940615]
[1756680507422,0.02806341,108970.0,108960.0,0.45940615]
[1756680509103,0.00047241,108970.0,108960.0,0.45940615]
[1756680509719,0.18400916,108970.0,108960.0,0.45940615]
[1756680510649,0.00047241,108970.0,108960.0,0.45940615]
[1756680513797,0.00047241,108970.0,108960.0,0.45440615]
[1756680514686,0.00147241,108970.0,108960.0,0.45940615]
[1756680515322,0.00147241,108970.0,108960.0,0.46240615]
[1756680516194,0.00147241,108970.0,108960.0,0.30044615]
[1756680516487,0.00345241,108970.0,108960.0,0.46240615]
[1756680516681,0.3313552,108970.0,108960.0,0.46240615]
[1756680517120,0.3293752,108970.0,108960.0,0.46240615]
[1756680517782,0.00147241,108970.0,108960.0,0.46240615]
[1756680518241,0.3293752,108970.0,108960.0,0.30044615]
[1756680518466,0.51489195,108970.0,108960.0,0.27901256]
[1756680518668,0.51489195,108970.0,108960.0,0.46256615]
[1756680519061,0.51291195,108970.0,108960.0,0.46256615]
[1756680521358,0.3293752,108970.0,108960.0,0.46256615]
[1756680522147,0.51489195,108970.0,108960.0,0.46240615]
[1756680522346,0.3293752,108970.0,108960.0,0.46240615]
[1756680523608,0.51291195,108970.0,108960.0,0.46240615]
[1756680523963,0.51489195,108970.0,108960.0,0.30044615]
[1756680524160,0.54248095,108970.0,108960.0,0.46224615]
[1756680524360,0.54248095,108970.0,108960.0,0.11180256]
[1756680524602,0.54248095,108970.0,108960.0,0.27344256]
[1756680524603,0.54548095,108970.0,108960.0,0.27344256]
[1756680524956,0.54548095,108970.0,108960.0,0.27340256]
[1756680526820,0.21757816,108970.0,108960.0,0.27340256]
[1756680527026,0.54548095,108970.0,108960.0,0.27340256]
[1756680528636,0.21757816,108970.0,108960.0,0.27340256]
[1756680528792,0.54548095,108970.0,108960.0,0.27340256]
[1756680528993,0.54548095,108970.0,108960.0,0.27316256]
[1756680529611,0.54548095,108970.0,108960.0,0.11180256]
[1756680529806,0.54548095,108970.0,108960.0,0.27312256]
[1756680530207,0.54548095,108970.0,108960.0,0.11180256]
[1756680530595,0.54548095,108970.0,108960.0,0.27304256]
[1756680530997,0.54548095,108970.0,108960.0,0.11180256]
[1756680531214,0.54548095,108970.0,108960.0,0.27304256]
[1756680535501,0.54548095,108970.0,108960.0,0.11180256]
[1756680535878,0.54548095,108970.0,108960.0,0.27264256]
[1756680536255,0.87338374,108970.0,108960.0,0.27264256]
[1756680539065,0.54548095,108970.0,108960.0,0.27264256]
[1756680539409,0.21457816,108970.0,108960.0,0.27468256]
[1756680539595,0.21457816,108970.0,108960.0,0.27763256]
[1756680539810,0.21259816,108970.0,108960.0,0.27763256]
[1756680540013,0.54050095,108970.0,108960.0,0.46118615]
[1756680540823,0.3569642,108970.0,108960.0,0.46118615]
[1756680541041,0.54050095,108970.0,108960.0,0.46118615]
[1756680542306,0.3569642,108970.0,108960.0,0.46118615]
[1756680542699,0.02906141,108970.0,108960.0,0.46118615]
[1756680543475,0.02906141,108970.0,108960.0,0.47030963]
[1756680543733,0.02906141,108970.0,108960.0,0.46118615]
[1756680544352,0.02906141,108970.0,108960.0,0.48212497]
[1756680544567,0.00147241,108970.0,108960.0,0.48212497]
[1756680545365,0.00147241,108970.0,108960.0,0.49152778]
[1756680547244,0.00147241,108970.0,108960.0,0.86943057]
[1756680547453,0.00147241,108970.0,108960.0,1.20943057]
[1756680548133,1e-08,108970.0,108960.0,1.56491636]
[1756680548278,1e-08,108970.0,108960.0,2.01431636]
[1756680548483,1e-08,108970.0,108960.0,2.01131636]
[1756680548708,1e-08,108970.0,108960.0,1.93365554]
[1756680548911,1e-08,108970.0,108960.0,2.09889554]
[1756680549521,0.40001709,109020.0,109010.0,0.1834694]
[1756680549741,0.40217709,109020.0,109010.0,0.50920941]
[1756680549981,0.41131099,109020.0,109010.0,0.34904941]
[1756680550173,0.42975609,109020.0,109010.0,0.50920941]
[1756680550392,0.35764179,109020.0,109010.0,0.50920941]
[1756680550873,0.35764179,109020.0,109010.0,0.50935148]
[1756680551071,0.35864179,109020.0,109010.0,0.50935148]
[1756680551335,0.54209436,109020.0,109010.0,0.50935148]
[1756680551513,0.35648179,109020.0,109010.0,0.35214148]
[1756680551755,0.35648179,109020.0,109010.0,0.51218148]
[1756680552167,0.35864179,109020.0,109010.0,0.51218148]
[1756680552636,0.35864179,109020.0,109010.0,0.51418148]
[1756680552846,0.35864179,109020.0,109010.0,0.35414148]
[1756680553036,0.35864179,109020.0,109010.0,0.51414148]
[1756680553337,0.35648179,109020.0,109010.0,0.51414148]
[1756680554007,0.35648179,109020.0,109010.0,0.28666748]
[1756680554225,0.35648179,109020.0,109010.0,0.47013688]
[1756680555017,0.35648179,109020.0,109010.0,0.31013688]
[1756680555398,0.35864179,109020.0,109010.0,0.46997688]
[1756680556233,0.35864179,109020.0,109010.0,0.46985688]
[1756680557360,0.35864179,109020.0,109010.0,0.31013688]
[1756680557606,0.35864179,109020.0,109010.0,0.46981688]
[1756680558106,0.35864179,109020.0,109010.0,0.46973688]
[1756680558237,0.030739,109020.0,109010.0,0.46973688]
[1756680558437,0.35648179,109020.0,109010.0,0.46973688]
[1756680558634,0.35864179,109020.0,109010.0,0.46973688]
[1756680560040,0.35864179,109020.0,109010.0,0.31013688]
[1756680560246,0.35864179,109020.0,109010.0,0.46965688]
[1756680560838,0.028579,109020.0,109010.0,0.46965688]
[1756680561053,0.35648179,109020.0,109010.0,0.46965688]
[1756680561243,0.35846179,109020.0,109010.0,0.46965688]
[1756680562565,0.030559,109020.0,109010.0,0.30514688]
[1756680562763,0.87291715,109020.0,109010.0,0.12167748]
[1756680562968,0.87291715,109020.0,109010.0,0.28359748]
[1756680563529,0.87291715,109020.0,109010.0,0.12167748]
[1756680563858,0.87291715,109020.0,109010.0,0.28363748]
[1756680568369,0.8814631,109020.0,109010.0,0.28363748]
[1756680569532,1.32686114,109020.0,109010.0,0.12167748]
[1756680569747,1.23856482,109020.0,109010.0,0.07270207]
[1756680569933,1.23856482,109020.0,109010.0,0.23542207]
[1756680570173,1.56646761,109020.0,109010.0,0.07270207]
[1756680570384,1.58616732,109020.0,109010.0,0.23342207]
[1756680570594,1.25826453,109020.0,109010.0,0.23342207]
[1756680572209,6.34556085,109020.0,109010.0,0.16286207]
[1756680572411,6.67988216,109020.0,109010.0,0.16286207]
[1756680572620,6.68088216,109020.0,109010.0,0.16286207]
[1756680574108,6.68088216,109020.0,109010.0,0.16254207]
[1756680575377,6.68088216,109020.0,109010.0,0.00014207]
[1756680576348,6.70562191,109020.0,109010.0,0.00014207]
[1756680578506,6.81089597,109020.0,109010.0,0.00014207]
[1756680578699,6.84301708,109020.0,109010.0,0.00014207]
[1756680579496,6.75459566,109020.0,109010.0,0.00014207]
[1756680579714,6.26473287,109020.0,109010.0,0.00014207]
[1756680581921,5.60892729,109020.0,109010.0,0.00014207]
[1756680582109,5.60892729,109020.0,109010.0,0.00521207]
[1756680582110,5.60582729,109020.0,109010.0,0.00521207]
[1756680582327,6.26163287,109020.0,109010.0,0.00521207]
[1756680583513,6.25965287,109020.0,109010.0,0.00521207]
[1756680583874,6.26163287,109020.0,109010.0,0.00521207]
[1756680585372,6.25965287,109020.0,109010.0,0.00521207]
[1756680585987,6.26163287,109020.0,109010.0,0.00224207]
[1756680587295,6.25520997,109020.0,109010.0,0.00224207]
[1756680589465,6.23808407,109020.0,109010.0,0.00224207]
[1756680589679,6.25521849,109020.0,109010.0,0.00224207]
[1756680590119,6.25521849,109020.0,109010.0,0.00527207]
[1756680591168,6.25521849,109020.0,109010.0,0.00224207]
[1756680592480,6.26164913,109020.0,109010.0,0.16360207]
[1756680593378,6.25521849,109020.0,109010.0,0.16360207]
[1756680593607,6.26165137,109020.0,109010.0,0.16360207]
[1756680594345,6.25521849,109020.0,109010.0,0.16360207]
[1756680594520,6.25521849,109020.0,109010.0,0.00224207]
[1756680595764,6.25521849,109020.0,109010.0,0.00014207]
[1756680596157,6.26165366,109020.0,109010.0,0.00014207]
[1756680596930,6.25521849,109020.0,109010.0,0.00223207]
[1756680598430,6.26165931,109020.0,109010.0,0.00223207]
[1756680599433,6.26481254,109020.0,109010.0,0.00014207]
[1756680600226,6.26489133,109020.0,109010.0,0.00014207]
[1756680600460,6.26174133,109020.0,109010.0,0.00223207]
[1756680601034,6.26174192,109020.0,109010.0,0.00223207]
[1756680602575,6.26174192,109020.0,109010.0,0.00526207]
[1756680602790,6.25529703,109020.0,109010.0,0.00526207]
[1756680603685,0.58541424,109020.0,109010.0,0.28171148]
[1756680603890,0.87643034,109020.0,109010.0,0.28171148]
[1756680604312,0.86783715,109020.0,109010.0,0.28171148]
[1756680605070,0.21203157,109020.0,109010.0,0.28171148]
[1756680605291,0.21203157,109020.0,109010.0,0.35227148]
[1756680605292,0.35648179,109020.0,109010.0,0.35227148]
[1756680605498,0.53993436,109020.0,109010.0,0.35227148]
[1756680607720,0.35648179,109020.0,109010.0,0.35227148]
[1756680608822,0.35548179,109020.0,109010.0,0.35227148]
[1756680609453,0.19259711,109040.0,109030.0,0.18343575]
[1756680609713,0.5204999,109040.0,109030.0,0.44065576]
[1756680610125,0.5480749,109040.0,109030.0,0.44065576]
[1756680611164,0.55750796,109040.0,109030.0,0.44065576]
[1756680612654,0.54833702,109040.0,109030.0,0.44065576]
[1756680615133,0.35547779,109040.0,109030.0,0.51121576]
[1756680616141,0.027575,109040.0,109030.0,0.51121576]
[1756680616555,0.35547779,109040.0,109030.0,0.51121576]
[1756680617172,0.35547779,109040.0,109030.0,0.51097576]
[1756680617397,0.35547779,109040.0,109030.0,0.35109576]
[1756680617795,0.35547779,109040.0,109030.0,0.51101576]
[1756680618478,0.35547779,109040.0,109030.0,0.51301576]
[1756680618694,0.35547779,109040.0,109030.0,0.51401576]
[1756680618912,0.35547779,109040.0,109030.0,0.51301576]
[1756680619143,0.35547779,109040.0,109030.0,0.51601576]
[1756680619790,0.027575,109040.0,109030.0,0.51601576]
[1756680620041,0.35547779,109040.0,109030.0,0.51601576]
[1756680620459,0.35547779,109040.0,109030.0,0.35609576]
[1756680620679,0.35547779,109040.0,109030.0,0.51589576]
[1756680621701,0.35547779,109040.0,109030.0,0.35609576]
[1756680621942,0.35547779,109040.0,109030.0,0.51581576]
[1756680622326,0.35547779,109040.0,109030.0,0.35609576]
[1756680622750,0.027575,109040.0,109030.0,0.51569576]
[1756680622951,0.35547779,109040.0,109030.0,0.51569576]
[1756680624713,0.027575,109040.0,109030.0,0.51569576]
[1756680624919,0.35547779,109040.0,109030.0,0.51569576]
[1756680630073,0.027575,109040.0,109030.0,0.51569576]
[1756680630261,0.35547779,109040.0,109030.0,0.51569576]
[1756680631110,0.027575,109040.0,109030.0,0.51569576]
[1756680631314,0.027575,109040.0,109030.0,0.52468831]
[1756680631765,0.32790279,109050.0,109040.0,0.18341892]
[1756680632042,0.18338654,109060.0,109050.0,0.1834021]
[1756680632043,0.51128991,109060.0,109050.0,0.1834021]
[1756680632226,0.52195984,109060.0,109050.0,0.50602211]
[1756680632368,0.53911038,109060.0,109050.0,0.50602211]
[1756680632782,0.56667938,109060.0,109050.0,0.50801211]
[1756680633196,0.38329226,109060.0,109050.0,0.51118418]
[1756680633414,0.38119226,109060.0,109050.0,0.51118418]
[1756680634024,0.38329226,109060.0,109050.0,0.51118418]
[1756680634924,0.56667755,109060.0,109050.0,0.51118418]
[1756680635294,0.38329226,109060.0,109050.0,0.51118418]
[1756680635515,0.38331834,109060.0,109050.0,0.51118418]
[1756680635727,0.38121843,109060.0,109050.0,0.51118418]
[1756680636577,0.05331564,109060.0,109050.0,0.51118418]
[1756680636877,0.38121843,109060.0,109050.0,0.51118418]
[1756680637747,0.03615118,109060.0,109050.0,0.51118418]
[1756680637963,0.00858218,109060.0,109050.0,0.531883]
[1756680638811,0.00858218,109060.0,109050.0,0.534883]
[1756680639662,0.00858218,109060.0,109050.0,0.531883]
[1756680639879,0.33648497,109060.0,109050.0,0.535883]
[1756680640094,0.33648497,109060.0,109050.0,0.379003]
[1756680640299,0.33648497,109060.0,109050.0,0.538283]
[1756680640506,0.33648497,109060.0,109050.0,0.536283]
[1756680640714,0.00858218,109060.0,109050.0,0.536283]
[1756680640958,0.00858218,109060.0,109050.0,0.539283]
[1756680641592,0.00858218,109060.0,109050.0,0.58148609]
[1756680642002,0.33648497,109060.0,109050.0,0.58148609]
[1756680642440,0.00858218,109060.0,109050.0,0.58148609]
[1756680643610,0.00858218,109060.0,109050.0,0.42220609]
[1756680643821,0.00858218,109060.0,109050.0,0.58132609]
[1756680644617,0.03614518,109060.0,109050.0,0.58132609]
[1756680645597,0.36404797,109060.0,109050.0,0.58132609]
[1756680645994,0.03614518,109060.0,109050.0,0.58132609]
[1756680646424,0.03613852,109060.0,109050.0,0.58132609]
[1756680646815,0.03613852,109060.0,109050.0,0.58112609]
[1756680650036,0.03613574,109060.0,109050.0,0.58112609]
[1756680651863,0.03613574,109060.0,109050.0,0.58104609]
[1756680652885,0.03613574,109060.0,109050.0,0.538843]
[1756680656020,0.36357906,109060.0,109050.0,0.538843]
[1756680656625,0.36358346,109060.0,109050.0,0.538843]
[1756680657039,0.36358346,109060.0,109050.0,0.380003]
[1756680657238,0.36358468,109060.0,109050.0,0.538843]
[1756680657445,0.35500632,109060.0,109050.0,0.538843]